[Event "88th Tata Steel Masters 2026"]
[White "Van Foreest,Jorden"]
[Black "Giri,Anish"]
[Site "Wijk aan Zee"]
[Round "3.4"]
[Annotator "TA"]
[Result "1-0"]
[Date "2026.01.19"]
[WhiteElo "2703"]
[BlackElo "2760"]
[PlyCount "127"]
[TimeControl "60"]

{[%evp 20,127,18,25,27,0,0,-5,3,20,26,30,25,20,35,19,27,29,29,0,9,25,47,0,0,34,18,40,50,0,28,16,28,21,17,19,16,14,23,15,17,0,35,37,43,28,28,30,27,33,41,8,10,12,54,55,112,101,110,101,93,81,143,140,152,96,116,126,149,143,141,137,244,131,133,138,217,234,353,325,270,290,346,346,325,350,304,319,447,433,372,360,652,666,688,678,588,588,798,786,2575,2441,2185,5949,5097,4434,29986,29987,29987,29988]} 1. e4 {[%emt 0:0:0]} c5 {[%emt 0:0:0]} 2. Nf3 {[%emt 0:0:0]} d6 {[%emt 0:0:0]} 3. d4 {[%emt 0:0:0]} cxd4 {[%emt 0:0:0]} 4. Nxd4 {[%emt 0:0:0]} Nf6 {[%emt 0:0:0]} 5. Nc3 {[%emt 0:0:0]} a6 {[%emt 0:0:0]} 6. Be3 {[%emt 0:0:0]} e5 {[%emt 0:0:0]} 7. Nb3 {[%emt 0:0:0]} Be7 {[%emt 0:0:0]} 8. f3 {[%emt 0:0:0]} Be6 {[%emt 0:0:0]} 9. Qd2 {[%emt 0:0:0]} h5 {[%emt 0:0:0]} 10. O-O-O {[%emt 0:0:0]} Nbd7 {[%emt 0:0:0]} 11. Kb1 {[%emt 0:0:0]} Qc7 {[%emt 0:0:0] B90: Sicilian Najdorf: Unusual White 6th moves, 6 Be3 Ng4 and 6 Be3 e5.} 12. a3 {[%emt 0:0:0]} Rc8 {[%emt 0:0:0]} 13. Nc1 {[%emt 0:0:17]} O-O {[%emt 0:8:4] The position is equal.} 14. N1a2 {[%emt 0:5:37]} b5 {[%emt 0:8:35]} 15. Nb4 {[%emt 0:2:35]} Qb7 {[%emt 0:0:58]} 16. Ncd5 {[%emt 0:1:49] Repels Nb6} Nxd5 {[%emt 0:8:30]} 17. exd5 $146 {[%emt 0:0:39][%cal Yf1d3] And now Bd3! would win.} ({Predecessor:} 17. Nxd5 Bd8 18. Qb4 Qc6 19. Rd2 Nf6 20. Nxf6+ {½-½ Willow,M (2278)-Sherwood,R (2310) WLS-NSW email 2015 [2]} )Bf5 {[%emt 0:0:34]} 18. Rg1 {[%emt 0:0:33]} Nb8 {[%emt 0:11:43]} 19. g4 {[%emt 0:7:2]} hxg4 {[%emt 0:0:50]} 20. fxg4 {[%emt 0:1:32]} Bg6 {[%emt 0:17:23]} 21. Bd3 {[%emt 0:5:12]} (21. h4 $5 )Bxd3 $1 {[%emt 0:13:17]} 22. Qxd3 {[%emt 0:1:4]} a5 {[%emt 0:0:35]} 23. Na2 {[%emt 0:0:38][%cal Yb4a2,Ya2c1,Yc1b3,Yb3d2,Yd2e4,Ye4g5,Yg5e6][%mdl 32]} b4 {[%emt 0:1:34]} 24. a4 {[%emt 0:1:34]} (24. axb4 $14 axb4 25. g5 )Qa6 {[%emt 0:5:40]} 25. Qxa6 {[%emt 0:6:46]} Nxa6 {[%emt 0:0:33]} 26. Nc1 {[%emt 0:0:38]} Bd8 {[%emt 0:1:51]} 27. Nb3 {[%emt 0:1:21][%cal Yh2h4]} Nb8 {[%emt 0:0:43][%cal Ya6b8,Yb8d7,Yd7f6][%mdl 32]} 28. Nd2 {[%emt 0:24:26]} Nd7 {[%emt 0:1:4]} 29. Ne4 {[%emt 0:6:11]} Be7 {[%emt 0:0:47]} 30. g5 {[%emt 0:2:34]} f5 {[%emt 0:6:31]} 31. gxf6 {[%emt 0:0:48]} Nxf6 {[%emt 0:0:34]} 32. Ng5 {[%emt 0:7:33]} Ne8 {[%emt 0:6:43]} 33. Ne6 {[%emt 0:4:23]} Rf3 {[%emt 0:0:47]} 34. Bb6 {[%emt 0:2:10]} Ra8 {[%emt 0:1:42]} 35. Rd3 {[%emt 0:5:15]} Rxd3 {[%emt 0:11:47]} 36. cxd3 {[%emt 0:0:45]} Ra6 {[%emt 0:0:33]} 37. Be3 {[%emt 0:1:21]} Ra8 {[%emt 0:0:33]} (37... b3 $14 )38. Ka2 {[%emt 0:2:33]} Kf7 {[%emt 0:3:36]} 39. Kb3 {[%emt 0:2:54]} Rb8 {[%emt 0:0:51]} 40. Rg2 {[%emt 0:0:0]} Bf6 {[%emt 0:0:0] [#]} ({Black should play} 40... Rb7 )41. Rf2 $1 $16 {[%emt 0:32:1]} Kg6 {[%emt 0:25:33] [#]} 42. Rf3 {[%emt 0:2:15] White has more active pieces.} (42. Nf8+ $142 $1 Kh5 43. Nd7 )Rb7 {[%emt 0:2:21]} 43. Rh3 {[%emt 0:1:31]} Be7 {[%emt 0:8:51]} 44. Kc4 {[%emt 0:4:27]} Bf6 {[%emt 0:2:39]} 45. Rh8 {[%emt 0:3:48]} Nc7 {[%emt 0:6:43]} (45... Rb8 $16 46. Nc7 Rc8 )46. Nxc7 {[%emt 0:3:10]} (46. Rc8 $18 Nxe6 47. dxe6 )Rxc7+ $18 {[%emt 0:0:2][%mdl 4096] Endgame KRB-KRB} 47. Kb3 {[%emt 0:0:7]} e4 {[%emt 0:1:4]} (47... Kf5 $16 )48. dxe4 {[%emt 0:0:51]} Re7 {[%emt 0:0:16]} (48... Rb7 $142 49. Bf2 Re7 )49. Bb6 {[%emt 0:0:43]} Rxe4 {[%emt 0:0:15]} 50. Bxa5 {[%emt 0:0:11]} Re2 {[%emt 0:4:51]} 51. Bxb4 {[%emt 0:0:32]} ({Weaker is} 51. Kxb4 Rxb2+ 52. Ka3 Kf5 $16 )Rxb2+ {[%emt 0:0:4]} 52. Kc4 {[%emt 0:0:25]} Be5 {[%emt 0:0:30]} 53. a5 {[%emt 0:0:54][%cal Ya4a5,Ya5a6][%mdl 32]} Bxh2 {[%emt 0:2:44]} (53... Ra2 {is a better defense.} 54. h3 Kf5 )54. Bc3 {[%emt 0:6:16]} Ra2 {[%emt 0:3:42]} 55. Kb3 {[%emt 0:3:45]} Rg2 {[%emt 0:0:5]} (55... Re2 56. Bd4 Be5 57. Bxe5 Rxe5 )56. a6 {[%emt 0:1:39]} Bg1 {[%emt 0:0:12]} 57. Rd8 {[%emt 0:0:11]} Kf5 {[%emt 0:1:22]} 58. Rxd6 {[%emt 0:0:6]} Ke4 {[%emt 0:0:42]} 59. Kc4 {[%emt 0:0:29]} g5 {[%emt 0:1:13]} 60. Re6+ {[%emt 0:0:34]} Kf3 {[%emt 0:0:29]} 61. d6 {[%emt 0:15:49][%cal Yd5d6,Yd6d7][%mdl 32]} Rg4+ {[%emt 0:15:15]} 62. Kd5 {[%emt 0:0:38]} Ba7 {[%emt 0:0:47]} 63. d7 {[%emt 0:0:19]} Rg1 {[%emt 0:0:4]} 64. Re1 {[%emt 0:0:5] Weighted Error Value: White=0.09 (flawless) /Black=0.49   Mistake:       	White=3     	Black=7      Inaccurate:     	White=2     	Black=4      OK:         	White=10    	Black=3      Best:        	White=1     	---        Strong:       	White=1     	Black=1} 1-0

[Event "88th Tata Steel Masters 2026"]
[White "Aravindh,Chithambaram VR."]
[Black "Abdusattorov,Nodirbek"]
[Site "Wijk aan Zee"]
[Round "3.5"]
[Annotator "TA"]
[Result "1/2-1/2"]
[Date "2026.01.19"]
[WhiteElo "2700"]
[BlackElo "2751"]
[PlyCount "83"]
[TimeControl "60"]

{[%evp 9,83,-19,4,0,6,8,10,0,0,-4,30,0,7,0,0,0,6,0,0,0,0,0,0,-6,0,0,0,0,-2,-8,-8,-6,0,0,0,0,0,0,0,0,0,0,9,14,14,7,15,-1,20,14,43,31,40,4,43,28,35,34,52,-6,21,15,11,12,23,20,27,30,20,0,0,0,12,0,0,0]} 1. e4 {[%emt 0:0:0]} e5 {[%emt 0:0:0]} 2. Nf3 {[%emt 0:0:0]} Nc6 {[%emt 0:0:0]} 3. Nc3 {[%emt 0:0:0]} Nf6 {[%emt 0:0:0]} 4. Nd5 {[%emt 0:0:0]} Bc5 {[%emt 0:0:0]} 5. Bc4 {[%emt 0:0:0]} O-O {[%emt 0:0:0]} 6. d3 {[%emt 0:0:0] C55: Two Knights: 4 d3, 4 d4 exd4 5 e5 and Max Lange Attack.} Nxd5 {[%emt 0:0:0]} 7. Bxd5 {[%emt 0:0:0]} d6 {[%emt 0:0:0]} 8. c3 {[%emt 0:0:0]} a5 {[%emt 0:0:29]} 9. O-O {[%emt 0:0:0]} Qe8 $146 {[%emt 0:5:22]} ({Predecessor:} 9... Qf6 10. a4 Ra6 11. Rb1 Qg6 12. Nh4 Qg4 13. Qxg4 Bxg4 14. h3 Be6 15. Nf5 Re8 {½-½ Holtorf,P-Jung,R DESC D0607 email 2010} )10. h3 {[%emt 0:16:47]} Bb6 {[%emt 0:12:8]} 11. Re1 {[%emt 0:9:43]} Be6 {[%emt 0:3:43]} 12. Bxe6 {[%emt 0:8:50]} Qxe6 {[%emt 0:9:49]} 13. Be3 {[%emt 0:1:31]} Bxe3 {[%emt 0:3:31]} 14. Rxe3 {[%emt 0:0:41]} a4 {[%emt 0:0:55]} 15. d4 {[%emt 0:1:39] [#] and d5 should not be overlooked} Qc4 {[%emt 0:2:41]} 16. dxe5 {[%emt 0:17:33]} Nxe5 {[%emt 0:0:42]} 17. Nd4 {[%emt 0:1:3]} Rfe8 {[%emt 0:3:8]} 18. Qe2 {[%emt 0:1:29]} Ra5 {[%emt 0:5:49]} 19. f4 {[%emt 0:11:34]} Qxe2 {[%emt 0:1:6]} 20. Rxe2 {[%emt 0:0:34]} Nd3 {[%emt 0:4:33]} 21. g3 {[%emt 0:0:50]} Ra6 {[%emt 0:17:55][%cal Ya5a6,Ya6c6,Yc6c5][%mdl 32]} 22. Rd1 {[%emt 0:9:33]} Nc5 {[%emt 0:0:35]} 23. e5 {[%emt 0:0:55]} Kf8 {[%emt 0:2:56]} 24. Nb5 {[%emt 0:8:3][%csl Yc7,Yd6]} Rc6 {[%emt 0:2:29]} 25. Rd5 {[%emt 0:3:13]} Nd7 {[%emt 0:6:48]} 26. Rdd2 {[%emt 0:7:26]} Rc5 {[%emt 0:6:29]} 27. Na3 {[%emt 0:3:12]} d5 {[%emt 0:2:28]} 28. Nc2 {[%emt 0:0:45]} Nb6 {[%emt 0:1:32]} 29. Rd3 {[%emt 0:1:15]} Ra5 {[%emt 0:2:26]} 30. Kf2 {[%emt 0:0:41]} c6 {[%emt 0:1:41]} 31. Nd4 {[%emt 0:0:52]} Nd7 {[%emt 0:1:44]} 32. Kf3 {[%emt 0:1:12]} Nc5 {[%emt 0:2:16]} 33. Rd1 {[%emt 0:1:8]} Raa8 {[%emt 0:1:2]} 34. Nf5 {[%emt 0:2:49]} ({White should try} 34. g4 $14 )f6 {[%emt 0:2:9]} 35. exf6 {[%emt 0:0:53]} gxf6 {[%emt 0:0:35]} 36. Rxe8+ {[%emt 0:0:51]} Rxe8 $11 {[%emt 0:0:36][%mdl 4096] Endgame KRN-KRN} 37. g4 {[%emt 0:0:42]} a3 {[%emt 0:3:52]} 38. b3 {[%emt 0:1:6]} (38. bxa3 Ra8 39. Nd6 Ke7 (39... Rxa3 40. Re1 $11 )40. Nf5+ Kf7 $17 )Ne4 {[%emt 0:0:46]} 39. Rd3 {[%emt 0:0:50] The position is equal.} Nc5 {[%emt 0:0:56]} 40. Rd1 {[%emt 0:0:0]} Ne4 {[%emt 0:0:0]} 41. Rd3 {[%emt 0:21:43]} Nc5 {[%emt 0:20:43]} 42. Rd1 {[%emt 0:3:21] Weighted Error Value: White=0.07 (flawless) /Black=0.07 (flawless)   Mistake:       	White=1     	---        Inaccurate:     	White=2     	Black=4      OK:         	White=13    	Black=12     Best:        	---       	Black=1} 1/2-1/2

[Event "88th Tata Steel Masters 2026"]
[White "Niemann,Hans Moke"]
[Black "Erdogmus,Yagiz Kaan"]
[Site "Wijk aan Zee"]
[Round "3.6"]
[Annotator "TA"]
[Result "1/2-1/2"]
[Date "2026.01.19"]
[WhiteElo "2725"]
[BlackElo "2658"]
[PlyCount "73"]
[TimeControl "60"]

{[%evp 13,73,17,13,13,13,13,13,10,18,17,17,12,12,12,14,0,0,0,0,-11,-16,-34,-17,-47,-35,-39,-35,-41,-39,-47,-20,-14,-12,-12,0,0,5,0,0,0,0,0,0,0,0,0,0,0,0,0,0,0,0,0,0,0,0,0,0,0,3,0]} 1. e4 {[%emt 0:0:0]} c6 {[%emt 0:0:0]} 2. d4 {[%emt 0:0:0]} d5 {[%emt 0:0:0]} 3. e5 {[%emt 0:0:0]} Bf5 {[%emt 0:0:0]} 4. Nf3 {[%emt 0:0:0]} e6 {[%emt 0:0:0]} 5. Be2 {[%emt 0:0:0]} c5 {[%emt 0:0:0]} 6. Be3 {[%emt 0:0:0]} Nd7 {[%emt 0:0:0]} 7. O-O {[%emt 0:0:0]} Ne7 {[%emt 0:0:0]} 8. dxc5 {[%emt 0:0:0] B12: Caro-Kann: Advance Variation.} Nc6 {[%emt 0:0:0][%csl Yc5,Ye5]} 9. c4 {[%emt 0:7:14]} dxc4 {[%emt 0:0:0]} 10. Na3 {[%emt 0:1:2]} Bxc5 {[%emt 0:0:0]} 11. Bxc5 {[%emt 0:4:11]} Nxc5 {[%emt 0:0:0]} 12. Nxc4 {[%emt 0:0:34]} O-O {[%emt 0:9:27]} 13. Qc1 {[%emt 0:35:18]} Nd7 {[%emt 0:40:32] Not much happening anymore} 14. Rd1 {[%emt 0:0:0]} Be4 {[%emt 0:6:54]} 15. Qe3 {[%emt 0:0:0]} Bd5 {[%emt 0:0:50]} 16. Rac1 {[%emt 0:0:0]} Qb8 $146 {[%emt 0:28:46]} ({Predecessor:} 16... Qc7 17. b3 Bxc4 18. Rxc4 Ndxe5 19. Nxe5 Qxe5 20. Qxe5 Nxe5 21. Rc7 Rab8 22. f4 Ng6 23. g3 Rfc8 {1-0 Faizrakhmanov,R (2480)-Macovei,A (2454) Titled Tuesday intern op 07th Dec blitz 2021 (8)} )17. h3 {[%emt 0:15:5]} a6 {[%emt 0:26:22]} 18. Qg5 {[%emt 0:17:33]} h6 {[%emt 0:0:0]} 19. Qg3 {[%emt 0:2:1]} Bxc4 {[%emt 0:0:0]} 20. Rxc4 {[%emt 0:0:39]} Ndxe5 {[%emt 0:0:0]} 21. Nxe5 {[%emt 0:0:40]} Qxe5 {[%emt 0:0:0]} 22. Qxe5 {[%emt 0:0:36] The position is equal.} Nxe5 {[%emt 0:0:0]} 23. Rc5 {[%emt 0:1:32]} Nc6 {[%emt 0:0:0]} 24. Rd7 {[%emt 0:0:51]} Rab8 {[%emt 0:0:0]} 25. Bf3 {[%emt 0:11:57]} Rfd8 {[%emt 0:0:0]} 26. Bxc6 {[%emt 0:1:20]} bxc6 {[%emt 0:0:0]} 27. Rxd8+ {[%emt 0:0:40]} Rxd8 {[%emt 0:0:0]} 28. Rxc6 $11 {[%emt 0:0:39][%mdl 4096] Endgame KR-KR} Rd1+ {[%emt 0:0:0]} 29. Kh2 {[%emt 0:0:39]} Rd2 {[%emt 0:0:0][%csl Yb2,Yf2]} 30. Rxa6 {[%emt 0:0:48] Hoping for Ra8+.} Rxb2 {[%emt 0:0:0]} 31. Kg1 {[%emt 0:0:35]} Rb1+ {[%emt 0:0:0]} 32. Kh2 {[%emt 0:0:35]} Rb2 {[%emt 0:0:0]} 33. Kg1 {[%emt 0:0:36]} Rb1+ {[%emt 0:0:0]} 34. Kh2 {[%emt 0:0:35]} Rb2 {[%emt 0:0:0]} 35. Kg1 {[%emt 0:0:36]} Rb1+ {[%emt 0:0:0]} 36. Kh2 {[%emt 0:0:35]} Rb2 {[%emt 0:0:0]} 37. Kg1 {[%emt 0:0:35] Weighted Error Value: White=0.04 (flawless) /Black=0.03 (flawless)   Inaccurate:     	White=1     	Black=1      OK:         	White=5     	Black=7} 1/2-1/2

[Event "88th Tata Steel Masters 2026"]
[White "Sindarov,Javokhir"]
[Black "Fedoseev,Vladimir"]
[Site "Wijk aan Zee"]
[Round "3.7"]
[Annotator "TA"]
[Result "1/2-1/2"]
[Date "2026.01.19"]
[WhiteElo "2726"]
[BlackElo "2705"]
[PlyCount "58"]
[TimeControl "60"]

{[%evp 18,57,7,2,2,0,2,9,13,2,16,11,14,12,20,16,10,10,11,6,19,4,20,16,17,9,18,10,19,32,28,0,16,18,12,11,21,0,8,0,13,0]} 1. e4 {[%emt 0:0:0]} e5 {[%emt 0:0:0]} 2. Nf3 {[%emt 0:0:0]} Nf6 {[%emt 0:0:0]} 3. Nxe5 {[%emt 0:0:0]} d6 {[%emt 0:0:0]} 4. Nf3 {[%emt 0:0:0]} Nxe4 {[%emt 0:0:0]} 5. d4 {[%emt 0:0:0]} d5 {[%emt 0:0:0]} 6. Bd3 {[%emt 0:0:0]} Bd6 {[%emt 0:0:0]} 7. O-O {[%emt 0:0:0]} O-O {[%emt 0:0:0]} 8. c4 {[%emt 0:0:0]} c6 {[%emt 0:0:0]} 9. h3 {[%emt 0:0:0]} Bf5 {[%emt 0:0:0]} 10. Nc3 {[%emt 0:4:33]} Nxc3 {[%emt 0:6:3] C42: Petroff Defence: 3 Nxe5 and unusual White 3rd moves.} 11. bxc3 {[%emt 0:1:4] A sharp opening} Bxd3 {[%emt 0:3:19]} 12. Qxd3 {[%emt 0:0:39]} dxc4 {[%emt 0:1:19]} 13. Qxc4 {[%emt 0:0:48]} Nd7 {[%emt 0:0:35]} 14. Qb3 $146 {[%emt 0:6:1]} ({Predecessor:} 14. a4 Qa5 15. Qb3 Nb6 16. Bd2 Qa6 17. Rfb1 Rab8 18. a5 Nc4 19. Ra4 Nxd2 20. Nxd2 {½-½ Davtyan,A (2497)-Divya,D (2372) Abu Dhabi op 29th 2023 (8)} )b6 {[%emt 0:4:21]} 15. c4 {[%emt 0:3:37]} h6 {[%emt 0:4:5]} 16. a4 {[%emt 0:3:35][%cal Ya2a4,Ya4a5][%mdl 32]} Re8 {[%emt 0:3:30]} 17. Ba3 {[%emt 0:3:20]} Bxa3 {[%emt 0:3:38]} 18. Qxa3 {[%emt 0:1:7]} Qc7 {[%emt 0:1:3]} 19. Rfe1 {[%emt 0:2:46]} Nf6 {[%emt 0:2:29]} 20. a5 {[%emt 0:2:21]} Rad8 {[%emt 0:0:56]} 21. Rxe8+ {[%emt 0:1:36]} Rxe8 {[%emt 0:0:36]} 22. Qa4 {[%emt 0:0:41]} Qd7 {[%emt 0:8:15]} 23. axb6 {[%emt 0:1:42]} axb6 {[%emt 0:0:34]} 24. Rb1 {[%emt 0:2:18]} Qc7 {[%emt 0:1:27] The position is equal.} 25. Qb3 {[%emt 0:1:2]} Rb8 {[%emt 0:0:40] Not much happening anymore} 26. Qe3 {[%emt 0:1:15]} Re8 {[%emt 0:3:20]} 27. Qb3 {[%emt 0:0:51]} Rb8 {[%emt 0:0:40]} 28. Qe3 {[%emt 0:0:37]} Re8 {[%emt 0:0:40]} 29. Qb3 {[%emt 0:0:40]} Rb8 {[%emt 0:0:18] An uneventful encounter.   Weighted Error Value: White=0.07 (flawless) /Black=0.04 (flawless)   Inaccurate:     	White=1     	---        OK:         	White=3     	Black=5} 1/2-1/2

[Event "88th Tata Steel Masters 2026"]
[White "Fedoseev,Vladimir"]
[Black "Van Foreest,Jorden"]
[Site "Wijk aan Zee"]
[Round "4.1"]
[Annotator "TA"]
[Result "1/2-1/2"]
[Date "2026.01.20"]
[WhiteElo "2705"]
[BlackElo "2703"]
[PlyCount "119"]
[TimeControl "60"]

{[%evp 15,118,26,17,27,10,10,23,27,18,-4,-2,-2,-2,-2,-3,-3,-4,-6,-6,-5,15,10,10,13,11,9,11,7,5,5,7,4,3,2,16,16,17,14,32,0,0,0,9,10,34,23,29,19,19,24,22,19,16,16,16,21,119,123,153,153,153,146,128,127,157,8,8,8,8,0,0,0,0,0,0,0,0,0,0,0,0,0,8,8,8,8,8,0,0,0,8,8,8,8,8,0,0,0,0,0,0,0,8,8,8]} 1. d4 {[%emt 0:0:0] Krasenkow,Michal} Nf6 {[%emt 0:0:0]} 2. c4 {[%emt 0:0:0]} g6 {[%emt 0:0:0]} 3. Nc3 {[%emt 0:0:0]} Bg7 {[%emt 0:0:0]} 4. e4 {[%emt 0:0:0]} d6 {[%emt 0:0:0]} 5. Nf3 {[%emt 0:0:0]} O-O {[%emt 0:0:0]} 6. Be2 {[%emt 0:0:0]} Na6 {[%emt 0:0:0]} 7. O-O {[%emt 0:0:0]} e5 {[%emt 0:0:0]} 8. Bg5 {[%emt 0:0:0]} h6 {[%emt 0:0:0]} 9. Be3 {[%emt 0:0:0] E94: King's Indian: Classical: 6 Be2 e5 7 0-0: Various Black 7th moves.} Ng4 {[%emt 0:0:0]} 10. Bc1 {[%emt 0:0:0]} exd4 {[%emt 0:0:0]} 11. Nxd4 {[%emt 0:0:0] White has an edge.} Qf6 {[%emt 0:0:0]} 12. Bxg4 $146 {[%emt 0:6:4]} ({Predecessor:} 12. Nb3 Qh4 13. Bf4 Be5 14. Bxe5 dxe5 15. h3 Nf6 16. Nd2 Rd8 17. Nd5 Nxd5 18. cxd5 {½-½ Gelfand,B (2777)-Naiditsch,A (2718) Tata Steel-A 76th 2014 (4)} )Bxg4 {[%emt 0:10:29]} 13. Qxg4 {[%emt 0:0:39]} Qxd4 {[%emt 0:0:43]} 14. Qe2 {[%emt 0:0:35]} Nc5 {[%emt 0:2:17]} 15. Rd1 {[%emt 0:14:34]} Qe5 {[%emt 0:1:28]} 16. Be3 {[%emt 0:11:2]} Nxe4 {[%emt 0:4:59]} 17. Nd5 {[%emt 0:0:45]} Qxb2 {[%emt 0:19:53]} 18. Qxb2 {[%emt 0:0:57]} Bxb2 {[%emt 0:0:36]} 19. Rab1 {[%emt 0:0:43]} Nc3 {[%emt 0:3:20]} 20. Nxc3 {[%emt 0:1:30]} Bxc3 {[%emt 0:0:38]} 21. Rxb7 {[%emt 0:0:34]} Ba5 {[%emt 0:2:13]} 22. Bxa7 {[%emt 0:3:37]} Rfe8 {[%emt 0:2:9]} 23. g3 {[%emt 0:6:24]} Re2 {[%emt 0:2:7]} 24. a3 {[%emt 0:0:58]} Ra2 {[%emt 0:17:45]} 25. Rd3 {[%emt 0:1:34]} g5 {[%emt 0:12:37]} 26. Rf3 {[%emt 0:11:50]} Re8 {[%emt 0:5:16]} 27. Kg2 {[%emt 0:4:49]} Re4 $1 {[%emt 0:0:50]} 28. c5 {[%emt 0:3:22]} g4 {[%emt 0:2:59]} 29. Rf5 {[%emt 0:2:30]} Re5 {[%emt 0:2:31]} 30. Rf4 {[%emt 0:1:11]} dxc5 {[%emt 0:1:54]} 31. Rb5 {[%emt 0:7:6]} Bb6 {[%emt 0:2:57]} 32. Bxb6 {[%emt 0:0:38]} cxb6 {[%emt 0:0:32]} 33. Rxb6 $11 {[%emt 0:1:3][%mdl 4096] Endgame KRR-KRR} h5 {[%emt 0:2:18]} 34. Rb8+ {[%emt 0:3:22]} Kg7 {[%emt 0:0:36]} 35. Rb7 {[%emt 0:0:33]} Rxa3 {[%emt 0:5:57]} (35... Ra1 $11 {keeps the balance.} )36. Rbxf7+ $16 {[%emt 0:0:38]} Kg8 {[%emt 0:0:32]} 37. R7f5 {[%emt 0:9:0]} Rxf5 {[%emt 0:0:35]} 38. Rxf5 {[%emt 0:0:34] KR-KR} c4 {[%emt 0:0:34]} 39. Rxh5 {[%emt 0:0:34]} Kf7 {[%emt 0:0:44]} 40. Rg5 {[%emt 0:0:0]} (40. Rc5 $16 Ra4 41. f3 )Ke6 {[%emt 0:0:0] The position is equal.} 41. Rxg4 {[%emt 0:21:38]} Kd5 {[%emt 0:24:46]} 42. Rg8 {[%emt 0:22:5]} c3 {[%emt 0:0:6]} 43. h4 {[%emt 0:8:4]} Ke4 {[%emt 0:3:42]} 44. Re8+ {[%emt 0:16:50]} Kd3 {[%emt 0:0:9]} 45. Rd8+ {[%emt 0:0:3]} Ke2 {[%emt 0:0:26]} 46. Re8+ {[%emt 0:0:3]} (46. h5 $5 c2 $8 47. Rc8 $11 )Kd2 {[%emt 0:0:8]} 47. Rd8+ {[%emt 0:0:21]} Ke2 {[%emt 0:0:10]} 48. Rc8 {[%emt 0:0:4]} (48. h5 $5 c2 $8 49. Rc8 $11 )Kd2 {[%emt 0:3:7]} 49. g4 {[%emt 0:1:47][%cal Yg3g4,Yg4g5][%mdl 32]} c2 {[%emt 0:0:4]} 50. g5 {[%emt 0:0:12]} Ra4 {[%emt 0:1:56]} 51. Kg3 {[%emt 0:2:42]} Ra3+ {[%emt 0:0:8]} 52. Kg2 $1 {[%emt 0:0:8]} Ra4 {[%emt 0:0:5]} 53. f4 {[%emt 0:0:42]} Rxf4 {[%emt 0:0:7]} 54. Kg3 {[%emt 0:0:17]} Rf1 {[%emt 0:3:47]} 55. h5 {[%emt 0:1:1]} c1=Q {[%emt 0:0:5]} 56. Rxc1 {[%emt 0:0:4]} Rxc1 {[%emt 0:0:5]} 57. h6 {[%emt 0:3:13]} Rh1 {[%emt 0:0:37]} 58. Kf4 {[%emt 0:0:7]} Rh4+ {[%emt 0:1:21]} 59. Kf5 {[%emt 0:0:29]} Ke3 {[%emt 0:0:5]} 60. Kg6 {[%emt 0:0:8] Weighted Error Value: White=0.07 (flawless) /Black=0.06 (flawless)   Mistake:       	White=1     	Black=1      Inaccurate:     	White=1     	---        OK:         	White=10    	Black=10     Best:        	---       	Black=2      Strong:       	White=1     	Black=1} 1/2-1/2